bitfinex/quotes_SOLUSD_20250326
["timestamp","ask_amount","ask_price","bid_price","bid_amount"]
[1742978904056,110.0015333,144.5,144.49,0.063]
[1742978904763,81.637,144.48,144.47,0.063]
[1742978904968,20.0,144.45,144.43,0.063]
[1742978905269,8.3015333,144.44,144.43,0.063]
[1742978905647,28.3015333,144.45,144.43,0.063]
[1742978906150,8.3015333,144.44,144.43,0.063]
[1742978907056,89.9385333,144.44,144.43,0.063]
[1742978908347,96.8617333,144.44,144.43,0.063]
[1742978908550,89.9385333,144.44,144.43,0.063]
[1742978910879,81.637,144.47,144.43,0.063]
[1742978911186,81.637,144.5,144.44,8.3015333]
[1742978911384,89.9385333,144.5,144.45,8.3015333]
[1742978911587,8.3015333,144.49,144.44,8.3015333]
[1742978911964,8.3015333,144.49,144.44,6.9232]
[1742978912276,8.3015333,144.47,144.44,6.9232]
[1742978912465,8.3015333,144.48,144.44,6.9232]
[1742978913304,8.3015333,144.47,144.44,6.9232]
[1742978913988,8.3015333,144.48,144.44,6.9232]
[1742978914373,8.3015333,144.47,144.44,6.9232]
[1742978914874,8.3015333,144.46,144.43,6.063]
[1742978915072,8.3015333,144.45,144.43,6.063]
[1742978915472,8.3015333,144.44,144.43,0.063]
[1742978915985,89.9385333,144.47,144.43,6.9866]
[1742978916188,89.9385333,144.47,144.43,0.063]
[1742978916387,8.3015333,144.46,144.43,0.063]
[1742978916969,8.3015333,144.45,144.43,0.063]
[1742978918785,20.0,144.46,144.43,0.063]
[1742978920502,20.0,144.46,144.43,6.9867]
[1742978921218,35.2238333,144.46,144.43,0.063]
[1742978921393,8.3015333,144.45,144.43,0.063]
[1742978921709,8.3015333,144.44,144.43,0.063]
[1742978922069,8.3015333,144.45,144.43,0.063]
[1742978924504,8.3015333,144.44,144.43,0.063]
[1742978925717,96.8617333,144.44,144.43,0.063]
[1742978925879,115.65354373,144.44,144.43,0.063]
[1742978928345,34.01654373,144.44,144.43,0.063]
[1742978933312,8.3015333,144.44,144.43,0.063]
[1742978935415,8.3015333,144.45,144.43,0.063]
[1742978936190,8.3015333,144.44,144.43,0.063]
[1742978936791,15.2247333,144.44,144.43,0.063]
[1742978937927,8.3015333,144.44,144.43,0.063]
[1742978938721,15.2247333,144.44,144.43,0.063]
[1742978940097,8.3015333,144.44,144.43,0.063]
[1742978940297,15.2247333,144.44,144.43,0.063]
[1742978942420,8.3015333,144.44,144.43,0.063]
[1742978942623,8.3015333,144.46,144.43,0.063]
[1742978943003,8.3315333,144.47,144.43,0.063]
[1742978943203,20.0,144.44,144.43,6.2611]
[1742978944019,28.3015333,144.44,144.43,0.063]
[1742978947004,35.2247333,144.44,144.43,0.063]
[1742978951226,116.9247333,144.44,144.43,0.063]
[1742978952337,135.71654373,144.44,144.43,0.063]
[1742978952533,54.01654373,144.44,144.43,0.063]
[1742978952720,27.09334373,144.42,144.41,0.063]
[1742978955530,34.01754373,144.42,144.41,0.063]
[1742978958547,20.0,144.37,144.31,6.9295]
[1742978958715,8.3015333,144.35,144.31,6.9295]
[1742978959037,81.7,144.36,144.33,8.3015333]
[1742978959614,81.7,144.39,144.34,8.3015333]
[1742978959830,90.0015333,144.39,144.34,8.3015333]
[1742978960010,81.7,144.39,144.35,8.3015333]
[1742978960221,81.7,144.39,144.36,16.5012333]
[1742978960513,81.7,144.39,144.37,6.9266]
[1742978961231,81.7,144.39,144.37,15.2281333]
[1742978961411,81.7,144.43,144.38,8.3015333]
[1742978961834,90.0015333,144.43,144.38,8.3015333]
[1742978962423,81.7,144.43,144.39,8.3015333]
[1742978962731,81.7,144.43,144.4,6.9252]
[1742978963617,81.7,144.46,144.42,8.3015333]
[1742978963819,81.7,144.46,144.42,15.8755333]
[1742978964420,81.7,144.46,144.43,8.3015333]
[1742978964627,0.03,144.47,144.44,6.9232]
[1742978964829,0.03,144.47,144.44,15.2247333]
[1742978965137,0.03,144.47,144.44,21.2247333]
[1742978966536,20.03,144.47,144.44,21.2247333]
[1742978966725,0.03,144.47,144.44,21.2247333]
[1742978967041,20.03,144.47,144.45,8.3015333]
[1742978967419,0.03,144.47,144.45,8.3015333]
[1742978967936,0.03,144.47,144.46,6.9223]
[1742978969136,0.03,144.47,144.46,15.2238333]
[1742978969318,0.0001,144.47,144.46,13.4668]
[1742978974743,0.0001,144.47,144.46,21.7683333]
[1742978976933,0.0001,144.47,144.46,15.2238333]
[1742978978423,0.0001,144.47,144.46,15.2868333]
[1742978978822,0.0001,144.47,144.46,0.063]
[1742978981146,0.0001,144.47,144.46,8.3645333]
[1742978981524,0.0001,144.47,144.46,0.063]
[1742978984049,0.0001,144.47,144.46,15.2868333]
[1742978984850,0.0001,144.47,144.46,6.9853]
[1742978985650,0.0001,144.47,144.46,15.2868333]
[1742978985959,0.0001,144.47,144.46,6.9853]
[1742978991038,0.0001,144.47,144.46,0.063]
[1742978991242,28.3016333,144.47,144.46,0.063]
[1742978993241,35.2234333,144.47,144.46,0.063]
[1742978995268,0.0001,144.47,144.46,0.063]
[1742978998747,28.3016333,144.47,144.46,0.063]
[1742978999977,35.2234333,144.47,144.46,0.063]
[1742979001074,54.01524373,144.47,144.46,0.063]
[1742979001449,54.01524373,144.47,144.37,6.1922]
[1742979001450,71.31984373,144.47,144.37,6.1922]
[1742979001649,8.3015333,144.41,144.37,6.1922]
[1742979002069,45.71371043,144.47,144.39,8.3015333]
[1742979002259,8.3015333,144.46,144.41,8.3015333]
[1742979002463,8.3015333,144.45,144.4,8.3015333]
[1742979002964,8.3015333,144.45,144.4,15.2263333]
[1742979003977,8.3015333,144.45,144.4,6.9248]
[1742979004176,8.3015333,144.44,144.39,6.9256]
[1742979005074,8.3015333,144.44,144.39,15.2271333]
[1742979005452,8.3015333,144.45,144.39,15.2271333]
[1742979006370,8.3015333,144.45,144.4,8.3015333]
[1742979007172,8.3015333,144.45,144.41,6.9247]
[1742979009373,81.7,144.46,144.41,15.2262333]
[1742979009574,81.7,144.46,144.42,8.3015333]
[1742979010175,81.7,144.46,144.43,8.3015333]
[1742979011264,0.0001,144.47,144.44,6.9232]
[1742979012477,0.0001,144.47,144.44,15.2247333]
[1742979012862,8.3016333,144.47,144.43,12.9236]
[1742979013179,28.3016333,144.47,144.43,12.9236]
[1742979013486,0.0001,144.47,144.43,21.2251333]
[1742979013988,0.0001,144.47,144.45,8.3015333]
[1742979014562,0.0001,144.47,144.44,6.257]
[1742979014563,0.0001,144.47,144.46,8.3015333]
[1742979015177,0.0001,144.47,144.45,8.3015333]
[1742979015378,0.0001,144.47,144.45,15.2238333]
[1742979017084,0.0001,144.47,144.46,8.3015333]
[1742979017462,0.0001,144.47,144.46,15.2238333]
[1742979027394,0.0001,144.47,144.46,35.57414373]
[1742979027785,0.0001,144.47,144.46,35.85846687]
[1742979032394,0.0001,144.47,144.46,35.7163053]
[1742979032789,0.0001,144.47,144.46,35.85846687]
[1742979033381,0.03,144.54,144.47,19.07613357]
[1742979033598,0.03,144.54,144.52,8.3015333]
[1742979034300,0.03,144.54,144.53,6.9189]
[1742979034489,0.03,144.54,144.5,1.38346669]
[1742979034696,0.03,144.54,144.51,8.3015333]
[1742979035297,0.03,144.54,144.53,8.3015333]
[1742979035495,0.03,144.54,144.53,14.3215333]
[1742979036910,0.03,144.54,144.53,21.2404333]
[1742979039009,0.03,144.54,144.53,41.41565224]
[1742979039307,0.03,144.54,144.53,6.02]
[1742979040789,0.03,144.54,144.49,8.3015333]
[1742979040998,8.3315333,144.54,144.48,9.9027333]
[1742979041307,8.3015333,144.53,144.49,6.02]
[1742979041507,8.3015333,144.53,144.48,21.2427333]
[1742979042490,8.3015333,144.53,144.48,15.2227333]
[1742979042688,8.3015333,144.53,144.48,21.2227333]
[1742979045820,8.3015333,144.52,144.48,6.0]
[1742979046012,8.3015333,144.51,144.47,6.0]
[1742979046714,8.3015333,144.51,144.46,14.3015333]
[1742979046922,8.3015333,144.52,144.47,8.3015333]
[1742979047711,88.6486,144.54,144.47,8.3015333]
[1742979047918,8.3015333,144.52,144.47,8.3015333]
[1742979049313,8.3015333,144.53,144.48,15.2228333]
[1742979049511,90.0315333,144.54,144.49,8.3015333]
[1742979049911,90.0315333,144.54,144.48,32.5262333]
[1742979050225,8.3015333,144.53,144.48,15.2228333]
[1742979050519,81.73,144.54,144.47,6.9217]
[1742979050520,8.3015333,144.51,144.47,6.9217]
[1742979051118,8.3015333,144.5,144.45,21.2240333]
[1742979051623,8.3015333,144.51,144.46,8.3015333]
[1742979051913,0.03,144.52,144.48,8.3015333]
[1742979052313,8.3315333,144.52,144.47,8.3015333]
[1742979053318,0.03,144.52,144.49,6.9208]
[1742979053719,0.03,144.52,144.49,15.2223333]
[1742979054422,0.03,144.52,144.49,6.9208]
[1742979056924,0.03,144.52,144.48,8.3015333]
[1742979056925,0.03,144.52,144.47,15.2233333]
[1742979057626,0.03,144.52,144.48,8.3015333]
[1742979059325,0.03,144.52,144.49,6.9208]
[1742979059630,0.03,144.52,144.49,15.2223333]
[1742979060012,0.03,144.52,144.5,14.2815333]
[1742979060313,0.03,144.52,144.5,5.98]
[1742979061225,0.03,144.52,144.5,14.2815333]
[1742979062011,0.03,144.52,144.5,12.9]
[1742979062217,0.03,144.52,144.5,5.98]
[1742979062619,8.3015333,144.51,144.5,5.98]
[1742979063320,8.3315333,144.52,144.5,5.98]
[1742979065913,15.2510333,144.52,144.5,5.98]
[1742979066929,8.3315333,144.52,144.5,5.98]
[1742979067933,8.3015333,144.51,144.45,8.3015333]
[1742979068129,8.3015333,144.48,144.44,12.9031]
[1742979068312,8.3015333,144.46,144.43,0.063]
[1742979068929,8.3015333,144.45,144.43,0.063]
[1742979069818,8.3015333,144.46,144.43,0.063]
[1742979070130,81.7,144.49,144.43,8.3645333]
[1742979070131,8.3015333,144.48,144.43,8.3645333]
[1742979070629,8.3015333,144.48,144.44,6.9232]
[1742979070838,81.7,144.49,144.46,8.3015333]
[1742979071022,8.3315333,144.52,144.47,8.3015333]
[1742979071222,8.3015333,144.51,144.46,8.3015333]
[1742979071616,28.3015333,144.5,144.45,14.2815333]
[1742979072634,28.3015333,144.49,144.45,5.98]
[1742979072934,20.0,144.49,144.45,26.00097606]
[1742979073311,33.09857606,144.5,144.45,26.00097606]
[1742979074140,13.09857606,144.51,144.46,13.09857606]
[1742979074938,13.09857606,144.51,144.47,6.9218]
[1742979075146,13.09857606,144.49,144.44,19.11857606]
[1742979075938,13.09857606,144.49,144.46,0.063]
[1742979076150,33.09857606,144.49,144.46,0.063]
[1742979078541,13.09857606,144.48,144.46,0.063]
[1742979080021,13.09857606,144.47,144.46,0.063]
[1742979081227,20.02037606,144.47,144.46,0.063]
[1742979082639,13.09857606,144.47,144.46,0.063]
[1742979085442,20.02037606,144.47,144.46,0.063]
[1742979085629,13.09857606,144.47,144.46,0.063]
[1742979088222,13.12857606,144.47,144.46,0.063]
[1742979088943,20.05037606,144.47,144.46,0.063]
[1742979093725,13.12857606,144.47,144.46,0.063]
[1742979094944,8.41702913,144.47,144.46,0.063]
[1742979095348,15.33882913,144.47,144.46,0.063]
[1742979095849,8.41702913,144.47,144.46,0.063]
[1742979096636,15.33882913,144.47,144.46,0.063]
[1742979096835,0.03,144.47,144.46,0.063]
[1742979103932,8.41702913,144.47,144.46,0.063]
[1742979105151,15.33882913,144.47,144.46,0.063]
[1742979110960,8.41702913,144.47,144.46,0.063]
[1742979115347,15.33882913,144.47,144.46,0.063]
[1742979117358,8.41702913,144.47,144.46,0.063]
[1742979123945,15.33882913,144.47,144.46,0.063]
[1742979128477,8.41702913,144.47,144.46,0.063]
[1742979131649,15.33882913,144.47,144.46,0.063]
[1742979134580,8.41702913,144.47,144.46,0.063]
[1742979134791,15.33882913,144.47,144.46,0.063]
[1742979135085,8.41702913,144.47,144.46,0.063]
[1742979135290,15.33882913,144.47,144.46,0.063]
[1742979138168,15.33882913,144.47,144.43,0.063]
[1742979138169,20.0,144.44,144.43,0.063]
[1742979138372,28.38702913,144.44,144.43,0.063]
[1742979138885,35.31022913,144.44,144.43,0.063]
[1742979139091,35.4523907,144.44,144.43,0.063]
[1742979140789,40.74894305,144.44,144.43,0.063]
[1742979141790,0.14216157,144.43,144.34,8.5552]
[1742979141982,8.38702913,144.38,144.34,8.5552]
[1742979142177,8.38702913,144.37,144.34,1.6272]
[1742979142492,8.38702913,144.35,144.33,6.1934]
[1742979143076,8.38702913,144.35,144.33,13.1218]
[1742979143270,8.38702913,144.36,144.33,13.1218]
[1742979147296,8.38702913,144.37,144.33,13.1218]
[1742979147773,8.38702913,144.36,144.33,13.1218]
[1742979149387,8.38702913,144.35,144.33,0.063]
[1742979149701,8.38702913,144.34,144.33,0.063]
[1742979151197,15.31502913,144.34,144.33,0.063]
[1742979153000,15.4571907,144.34,144.33,0.063]
[1742979153592,81.7,144.33,144.31,0.063]
[1742979153903,8.5291907,144.32,144.31,0.063]
[1742979154705,27.17883956,144.32,144.31,0.063]
[1742979154904,108.73667799,144.31,144.3,2.2319167]
[1742979155201,27.03667799,144.31,144.3,2.2319167]
[1742979155385,33.96617799,144.31,144.3,2.2319167]
[1742979155781,20.0,144.29,144.28,0.063]
[1742979156093,28.38702913,144.29,144.28,0.063]
[1742979157397,35.31742913,144.29,144.28,0.063]
[1742979161692,28.38702913,144.29,144.28,0.063]
[1742979162511,35.31742913,144.29,144.28,0.063]
[1742979162807,28.38702913,144.29,144.28,0.063]
[1742979165694,35.31742913,144.29,144.28,0.063]
[1742979166722,28.38702913,144.29,144.28,0.063]
[1742979173234,20.0,144.29,144.28,0.063]
[1742979174549,20.0,144.29,144.28,6.9939]
[1742979179422,20.0,144.29,144.28,0.063]
[1742979183937,0.03,144.3,144.28,0.063]
[1742979185737,8.41702913,144.3,144.28,0.063]
[1742979186346,0.03,144.3,144.28,0.063]
[1742979188937,0.03,144.3,144.28,9.95932913]
[1742979189134,0.03,144.3,144.29,8.38702913]
[1742979190248,0.03,144.3,144.29,8.5291907]
[1742979190950,0.03,144.3,144.29,34.10923956]
[1742979191836,0.03,144.3,144.29,6.9304]
[1742979200452,0.03,144.3,144.28,0.063]
[1742979200654,8.41702913,144.3,144.28,0.063]
[1742979200841,8.41702913,144.3,144.28,6.9938]
[1742979201042,8.41702913,144.3,144.28,0.063]
[1742979205667,8.38702913,144.29,144.28,0.063]
[1742979206665,90.08702913,144.29,144.28,0.063]
[1742979207957,15.31742913,144.29,144.28,0.063]
[1742979208469,8.38702913,144.29,144.28,0.063]
[1742979209538,8.41702913,144.3,144.28,0.063]
[1742979209747,0.03,144.3,144.28,0.063]
[1742979209946,0.03,144.3,144.28,6.9939]
[1742979211858,0.03,144.3,144.28,0.063]
[1742979214873,8.38702913,144.29,144.28,0.063]
[1742979222381,15.31742913,144.29,144.28,0.063]
[1742979226676,8.38702913,144.29,144.28,0.063]
[1742979227562,28.41702913,144.3,144.28,0.063]
[1742979229987,8.38702913,144.29,144.28,0.063]
[1742979230878,28.41702913,144.3,144.28,0.063]
[1742979231975,20.03,144.3,144.28,0.063]
[1742979232173,0.03,144.3,144.28,0.063]
[1742979234360,8.41702913,144.3,144.28,0.063]
[1742979235998,0.03,144.3,144.28,0.063]
[1742979236670,8.41702913,144.3,144.28,0.063]
[1742979236892,0.03,144.3,144.28,0.063]
[1742979241490,0.03,144.3,144.28,8.45002913]
[1742979242393,0.03,144.3,144.29,6.9304]
[1742979244396,0.03,144.3,144.28,6.9939]
[1742979247103,0.03,144.3,144.28,15.38092913]
[1742979247278,0.03,144.3,144.28,6.9939]
[1742979253697,0.03,144.3,144.29,8.38702913]
[1742979254290,0.03,144.3,144.29,15.31742913]
[1742979259020,0.03,144.3,144.29,33.96707799]
[1742979260211,90.08702913,144.36,144.29,51.29327799]
[1742979260391,8.38702913,144.37,144.31,8.38702913]
[1742979260585,8.38702913,144.37,144.32,14.32702913]
[1742979261316,8.38702913,144.37,144.33,6.9285]
[1742979262622,8.38702913,144.36,144.33,6.9285]
[1742979264800,8.38702913,144.37,144.33,6.9285]
[1742979267932,81.7,144.39,144.33,24.2499]
[1742979268099,81.7,144.39,144.34,8.38702913]
[1742979268296,8.38702913,144.41,144.35,8.38702913]
[1742979268497,0.03,144.37,144.35,8.38702913]
[1742979268800,0.03,144.37,144.36,27.03667799]
[1742979271042,0.03,144.37,144.36,33.96377799]
[1742979274649,0.03,144.37,144.36,6.9271]
[1742979276453,0.03,144.37,144.36,12.8671]
[1742979278928,0.03,144.37,144.36,21.25412913]
[1742979283052,0.03,144.37,144.36,40.18810113]
[1742979283247,20.0,144.43,144.4,8.38702913]
[1742979283447,8.41702913,144.45,144.4,8.38702913]
[1742979283748,0.03,144.45,144.41,8.38702913]
[1742979284129,0.03,144.45,144.41,14.32702913]
[1742979284976,0.03,144.45,144.42,6.9242]
[1742979295667,0.03,144.45,144.42,15.31122913]
[1742979299051,0.03,144.45,144.43,8.38702913]
[1742979299256,0.0001,144.45,144.44,27.32100113]
[1742979300168,0.0001,144.45,144.44,28.84728203]
[1742979300675,0.0001,144.45,144.44,35.77048203]
[1742979300879,0.0001,144.45,144.44,117.77038203]
[1742979301972,0.0001,144.47,144.46,27.34123357]
[1742979302173,0.0001,144.47,144.46,123.6481627]
[1742979302354,0.0001,144.47,144.46,116.34047759]
[1742979302560,0.0001,144.47,144.46,100.64954886]
[1742979302959,0.0001,144.47,144.46,109.03657799]
[1742979303982,0.0001,144.47,144.46,115.95887799]
[1742979305080,0.0001,144.47,144.46,117.76939881]
[1742979308663,0.0001,144.47,144.46,125.37549881]
[1742979311878,0.0001,144.47,144.46,125.23333724]
[1742979312090,0.0001,144.47,144.46,107.57184886]
[1742979312278,0.0001,144.47,144.46,113.49184886]
[1742979312583,0.0001,144.47,144.46,88.9222]
[1742979312783,0.0001,144.47,144.46,81.9999]
[1742979313173,8.38712913,144.47,144.44,0.063]
[1742979313374,8.38702913,144.45,144.44,0.063]
[1742979314083,8.38702913,144.46,144.44,0.063]
[1742979315970,8.38712913,144.47,144.44,0.063]
[1742979316401,0.0001,144.47,144.44,0.063]
[1742979317202,8.38712913,144.47,144.44,0.063]
[1742979318595,8.38702913,144.46,144.44,0.063]
[1742979319594,8.38712913,144.47,144.44,0.063]
[1742979322078,0.0001,144.47,144.44,0.063]
[1742979323173,0.0001,144.47,144.44,6.9862]
[1742979326900,0.0001,144.47,144.44,32.68142913]
[1742979327401,0.0001,144.47,144.45,8.38702913]
[1742979327610,0.0001,144.47,144.44,32.68142913]
[1742979328810,0.0001,144.47,144.45,8.38702913]
[1742979329105,0.0001,144.47,144.46,8.38702913]
[1742979329322,0.0001,144.47,144.46,15.30932913]
[1742979329492,0.0001,144.47,144.46,6.9223]
[1742979335214,0.0001,144.47,144.44,0.063]
[1742979335393,8.38712913,144.47,144.44,0.063]
[1742979336619,8.38702913,144.46,144.44,0.063]
[1742979337288,8.38702913,144.45,144.44,0.063]
[1742979338788,8.38702913,144.46,144.44,0.063]
[1742979341497,8.38712913,144.47,144.44,0.063]
[1742979344227,15.30902913,144.47,144.44,0.063]
[1742979344922,8.38702913,144.46,144.44,0.063]
[1742979345918,8.38702913,144.45,144.44,0.063]
[1742979347725,6.9223,144.46,144.44,0.063]
[1742979347726,8.38702913,144.46,144.44,0.063]
[1742979347928,8.38712913,144.47,144.44,0.063]
[1742979350825,0.0001,144.47,144.44,0.063]
[1742979354345,0.0001,144.47,144.44,8.45002913]
[1742979354647,0.0001,144.47,144.45,6.9228]
[1742979355619,0.0001,144.47,144.46,8.38702913]
[1742979356378,0.0001,144.47,144.45,15.30982913]
[1742979357488,0.0001,144.47,144.46,8.38702913]
[1742979358983,0.0001,144.47,144.46,27.03667799]
[1742979359283,0.0001,144.47,144.46,33.95897799]
[1742979360187,0.0001,144.47,144.46,34.24330113]
[1742979360866,0.0001,144.47,144.46,33.95897799]
[1742979362378,0.0001,144.47,144.46,15.30932913]
[1742979366595,0.0001,144.47,144.46,6.9223]
[1742979367078,0.0001,144.47,144.44,0.063]
[1742979367401,8.38712913,144.47,144.44,12.9061]
[1742979367691,0.0001,144.47,144.44,12.9061]
[1742979368001,0.0001,144.47,144.44,6.9861]
[1742979369386,8.38702913,144.45,144.44,0.063]
[1742979371299,15.30982913,144.45,144.44,0.063]
[1742979372601,8.38702913,144.45,144.44,0.063]
[1742979375117,81.7,144.46,144.44,0.063]
[1742979375286,8.38712913,144.47,144.44,0.063]
[1742979375488,28.38712913,144.47,144.44,0.063]
[1742979375710,8.38702913,144.46,144.44,0.063]
[1742979376409,8.38712913,144.47,144.44,0.063]
[1742979376579,0.0001,144.47,144.44,0.063]
[1742979376917,0.0001,144.47,144.45,6.9228]
[1742979377976,20.0,144.49,144.45,6.9228]
[1742979378181,28.38702913,144.49,144.45,6.9228]
[1742979379008,8.38702913,144.49,144.45,6.9228]
[1742979379306,8.38702913,144.51,144.46,8.38702913]
[1742979380288,8.38702913,144.51,144.47,6.9218]
[1742979382207,8.38702913,144.5,144.47,6.9218]
[1742979383918,8.38702913,144.5,144.46,24.2276]
[1742979384591,8.38702913,144.51,144.46,32.61462913]
[1742979386119,8.38702913,144.5,144.46,24.2276]
[1742979387718,0.03,144.49,144.46,24.2276]
[1742979390316,0.03,144.49,144.46,32.61462913]
[1742979392133,0.03,144.49,144.47,8.38702913]
[1742979392304,0.03,144.49,144.48,33.3831627]
[1742979393518,0.03,144.52,144.49,18.933972]
[1742979393915,0.03,144.52,144.51,15.30692913]
[1742979394219,0.03,144.52,144.51,6.9199]
[1742979396232,0.03,144.52,144.5,15.30722913]
[1742979397335,0.03,144.52,144.5,6.9202]
[1742979397549,8.41702913,144.52,144.5,5.92]
[1742979398110,8.38702913,144.51,144.45,90.38692913]
[1742979398312,8.38702913,144.5,144.46,5.92]
[1742979398512,8.38702913,144.49,144.46,5.92]
[1742979399935,8.38702913,144.49,144.46,5.983]
[1742979400936,15.30802913,144.49,144.46,5.983]
[1742979401136,8.38702913,144.48,144.46,5.983]
[1742979401540,28.38702913,144.5,144.46,5.983]
[1742979401847,28.38702913,144.5,144.46,12.9053]
[1742979402346,8.38702913,144.48,144.46,5.983]
[1742979403343,8.38702913,144.49,144.46,5.983]
[1742979403651,28.38702913,144.5,144.46,12.9052]
[1742979404021,8.38702913,144.49,144.46,12.9052]
[1742979405349,8.38702913,144.49,144.46,0.063]
[1742979406950,8.38702913,144.48,144.46,0.063]
[1742979407157,8.38702913,144.47,144.46,0.063]
[1742979411465,8.38702913,144.48,144.46,0.063]
[1742979411868,20.0,144.5,144.46,0.063]
[1742979412056,90.08702913,144.51,144.46,8.45002913]
[1742979412368,0.03,144.52,144.49,8.38702913]
[1742979412668,0.03,144.52,144.5,8.38702913]
[1742979413049,0.03,144.52,144.51,6.9199]
[1742979413452,0.03,144.52,144.51,15.30692913]
[1742979413763,0.03,144.52,144.51,33.95657799]
[1742979413957,0.03,144.52,144.51,34.24090113]
[1742979414841,0.03,144.52,144.51,38.9378399]
[1742979422489,0.03,144.54,144.53,25.852872]
[1742979422663,0.03,144.54,144.53,44.8568399]
[1742979423994,0.03,144.58,144.54,18.933972]
[1742979424288,0.03,144.58,144.56,13.0839679]
[1742979424587,0.03,144.58,144.57,6.917]
[1742979425294,0.03,144.58,144.57,20.0009679]
[1742979426187,0.03,144.58,144.57,38.9349399]
[1742979426774,0.0001,144.58,144.57,130.36289209]
[1742979429683,0.0001,144.58,144.57,130.22073052]
[1742979431293,0.0001,144.58,144.57,130.36289209]
[1742979432393,0.0001,144.58,144.57,130.22073052]
[1742979433095,0.0001,144.58,144.57,130.07856895]
[1742979433584,0.0001,144.58,144.57,130.22073052]
[1742979434402,0.0001,144.58,144.57,103.38375852]
[1742979434583,0.0001,144.58,144.57,107.9208679]
[1742979435196,0.0001,144.58,144.57,126.8548399]
[1742979436393,0.0001,144.58,144.57,126.99700147]
[1742979440391,0.0001,144.58,144.57,107.9208679]
[1742979440908,0.0001,144.58,144.57,103.20535385]
[1742979442204,0.0001,144.58,144.57,81.9999]
[1742979442405,8.36855385,144.58,144.57,81.9999]
[1742979442584,0.0001,144.58,144.56,6.9174]
[1742979444687,0.0001,144.58,144.56,19.9982256]
[1742979445404,0.0001,144.58,144.57,32.0147976]
[1742979446092,0.0001,144.58,144.57,38.9317976]
[1742979446300,0.0001,144.58,144.57,40.45687352]
[1742979449322,0.0001,144.58,144.57,27.09172478]
[1742979449513,0.0001,144.58,144.57,6.917]
[1742979450719,0.0001,144.58,144.57,19.9978256]
[1742979451023,0.0001,144.58,144.57,13.0808256]
[1742979451929,0.0001,144.58,144.57,19.9978256]
[1742979452108,0.0001,144.58,144.57,6.917]
[1742979453219,0.0001,144.58,144.56,12.8373]
[1742979453418,0.0001,144.58,144.56,5.92]
[1742979454827,13.0809256,144.58,144.56,5.92]
[1742979456138,0.0001,144.58,144.56,5.92]
[1742979458034,13.0809256,144.58,144.56,12.8372]
[1742979459635,13.0808256,144.57,144.56,0.063]
[1742979462645,14.6049256,144.58,144.56,0.063]
[1742979462828,0.0001,144.58,144.56,0.063]
[1742979463543,0.0001,144.58,144.56,8.4345766]
[1742979463739,0.0001,144.58,144.57,8.3715766]
[1742979464122,0.0001,144.58,144.57,41.52560536]
[1742979464847,0.0001,144.58,144.57,46.22600358]
[1742979465023,0.0001,144.58,144.57,39.30900358]
[1742979465953,0.0001,144.58,144.57,46.22600358]
[1742979467963,0.0001,144.58,144.57,39.30900358]
[1742979468149,0.0001,144.58,144.57,39.45116515]
[1742979470036,0.0001,144.58,144.57,46.36816515]
[1742979471147,0.0001,144.58,144.57,39.45116515]
[1742979473157,0.0001,144.58,144.57,128.36806515]
[1742979474135,0.0001,144.59,144.58,0.14216157]
[1742979474341,0.0001,144.59,144.58,13.21413639]
[1742979474744,0.03,144.62,144.6,18.933972]
[1742979474952,0.03,144.62,144.61,13.07197482]
[1742979475459,0.03,144.62,144.61,32.00594682]
[1742979476943,0.03,144.62,144.61,38.92104682]
[1742979478981,0.03,144.62,144.61,120.92094682]
[1742979479950,0.03,144.62,144.61,114.00584682]
[1742979480563,0.03,144.62,144.61,81.9999]
[1742979481870,0.03,144.62,144.61,13.07197482]